bitfinex/quotes_ETHUSD_20240718
["timestamp","ask_amount","ask_price","bid_price","bid_amount"]
[1721329387713,2.9314,3411.4,3410.6,2.932]
[1721329387907,2.9314,3411.4,3410.6,3.72187939]
[1721329388111,2.93161,3411.1,3410.5,2.93209]
[1721329388604,5.34265,3410.7,3410.0,7.44]
[1721329388921,2.93223,3410.4,3409.7,5.86552]
[1721329389137,2.93223,3410.4,3409.7,2.93274]
[1721329389436,2.93223,3410.4,3409.8,2.93272]
[1721329389794,2.93223,3410.4,3409.7,2.93274]
[1721329390238,2.93223,3410.4,3409.8,2.9327]
[1721329390411,2.93204,3410.6,3410.0,2.93254]
[1721329391513,2.93215,3410.5,3409.8,2.93266]
[1721329391739,2.93204,3410.6,3409.8,2.93266]
[1721329391740,2.93221,3410.4,3409.8,2.93266]
[1721329391908,2.93204,3410.6,3409.8,2.93266]
[1721329391909,2.93229,3410.3,3409.8,2.93266]
[1721329392110,2.93218,3410.5,3409.8,2.93266]
[1721329392302,2.93223,3410.4,3409.8,2.93266]
[1721329392496,2.93235,3410.3,3409.7,2.9328]
[1721329392699,2.93217,3410.5,3409.8,2.93271]
[1721329393153,2.93217,3410.5,3409.9,2.93263]
[1721329393500,2.93222,3410.4,3409.7,4.263309]
[1721329393728,2.93213,3410.5,3409.9,2.93263]
[1721329396208,5.34271,3410.7,3410.0,2.93254]
[1721329397128,2.93169,3411.0,3410.0,0.7195739]
[1721329397461,2.93138,3411.4,3410.2,2.93234]
[1721329397739,5.38146,3411.5,3410.9,2.93172]
[1721329398438,2.93152,3411.2,3410.5,2.93205]
[1721329398736,2.93152,3411.2,3410.6,3.48197]
[1721329398947,2.9314,3411.4,3410.7,2.93186]
[1721329399244,2.4502,3411.5,3410.9,2.93176]
[1721329399449,2.93112,3411.7,3411.1,2.93157]
[1721329399945,2.93105,3411.8,3411.1,2.93157]
[1721329400146,2.93111,3411.7,3411.1,2.93157]
[1721329400839,2.93093,3411.9,3411.1,2.93157]
[1721329401047,2.93078,3412.1,3411.2,0.293157]
[1721329401208,2.93061,3412.3,3411.2,0.293157]
[1721329401411,2.93061,3412.3,3411.3,0.60862113]
[1721329401847,2.93061,3412.3,3411.7,2.93103]
[1721329402006,2.93066,3412.2,3411.6,2.93117]
[1721329402645,2.93061,3412.3,3411.4,2.93129]
[1721329402890,2.93061,3412.3,3411.3,3.48139]
[1721329402891,2.93098,3411.9,3411.3,0.55]
[1721329403024,2.93098,3411.9,3411.1,2.93157]
[1721329403218,2.93098,3411.9,3411.2,0.55]
[1721329403621,2.93098,3411.9,3411.3,2.93143]
[1721329404121,2.844877,3412.2,3411.4,2.93131]
[1721329404122,2.93085,3412.0,3411.4,2.93131]
[1721329404445,2.93092,3411.9,3411.3,2.93143]
[1721329407017,2.93101,3411.8,3411.3,2.93143]
[1721329408854,2.93077,3412.1,3411.3,2.93143]
[1721329409154,2.93093,3411.9,3411.3,2.93143]
[1721329412625,2.93101,3411.8,3411.2,2.9315]
[1721329413054,0.586186,3411.8,3411.0,5.30743]
[1721329413277,2.93131,3411.5,3410.8,7.44]
[1721329413414,2.9315,3411.3,3410.5,2.93205]
[1721329413620,2.93162,3411.1,3410.5,2.93205]
[1721329413926,2.93169,3411.0,3410.3,10.37221]
[1721329414756,2.93169,3411.0,3410.4,2.9322]
[1721329415471,2.93169,3411.0,3410.3,7.44]
[1721329415472,0.37824906,3411.0,3410.3,7.44]
[1721329415663,2.40924906,3411.0,3409.7,10.37277]
[1721329415829,2.93204,3410.6,3409.9,2.93263]
[1721329416225,2.93225,3410.4,3409.7,5.86551]
[1721329416444,2.93225,3410.4,3409.7,2.93274]
[1721329416655,2.93238,3410.2,3409.6,2.3885]
[1721329416860,2.93238,3410.2,3409.5,2.93291]
[1721329417556,2.93238,3410.2,3409.6,2.93284]
[1721329417737,2.93225,3410.4,3409.7,2.93272]
[1721329418724,5.86454,3410.4,3409.7,2.93272]
[1721329419031,2.93225,3410.4,3409.7,2.93272]
[1721329419232,2.93235,3410.3,3409.7,2.93272]
[1721329419939,2.93225,3410.4,3409.7,2.93272]
[1721329420137,0.24092491,3410.9,3409.8,3.48268]
[1721329420446,2.93207,3410.6,3409.8,3.48269]
[1721329421622,0.24092491,3410.9,3409.8,3.48269]
[1721329421623,2.9319,3410.8,3409.8,3.48269]
[1721329422235,2.93203,3410.7,3410.0,2.93248]
[1721329422937,2.93203,3410.7,3410.1,2.93244]
[1721329423136,2.40924906,3411.0,3410.0,3.61187205]
[1721329423137,3.30996906,3411.0,3410.0,3.61187205]
[1721329423342,3.30996906,3411.0,3410.1,0.55]
[1721329423676,2.93178,3410.9,3410.4,2.9322]
[1721329424038,2.93178,3410.9,3410.2,2.93232]
[1721329424587,2.93213,3410.5,3410.0,2.93248]
[1721329425073,2.93213,3410.5,3409.9,2.93261]
[1721329426486,2.93213,3410.5,3409.9,5.86517]
[1721329426657,2.93213,3410.5,3409.9,2.93256]
[1721329427481,2.93222,3410.4,3409.9,2.93256]
[1721329427863,2.9323,3410.3,3409.7,2.93274]
[1721329428070,2.9323,3410.3,3409.8,0.55]
[1721329428251,5.86432,3410.5,3409.8,3.48272]
[1721329428578,2.93213,3410.5,3409.9,2.93263]
[1721329428753,2.93213,3410.5,3410.0,2.93254]
[1721329429676,2.93182,3410.9,3410.3,2.93228]
[1721329429878,2.93188,3410.8,3410.3,2.93228]
[1721329430365,2.93174,3411.0,3410.3,2.93222]
[1721329430569,2.93174,3411.0,3410.4,2.9322]
[1721329430977,2.93178,3410.9,3410.4,2.9322]
[1721329431272,2.93178,3410.9,3410.2,2.93231]
[1721329431273,5.86363,3410.9,3410.2,2.93231]
[1721329432791,2.93178,3410.9,3410.3,2.93229]
[1721329433004,2.93169,3411.0,3410.5,2.9321]
[1721329433280,2.93169,3411.0,3410.3,2.93221]
[1721329433579,2.93169,3411.0,3410.4,2.93213]
[1721329434339,2.93182,3410.9,3410.4,2.93213]
[1721329434677,5.21167,3411.1,3410.4,2.93213]
[1721329435477,5.21167,3411.1,3410.4,5.86427]
[1721329435678,2.93171,3411.0,3410.4,2.93213]
[1721329436183,5.86347,3411.0,3410.4,2.93213]
[1721329436569,2.93178,3410.9,3410.4,2.93213]
[1721329437766,2.93187,3410.8,3410.2,2.93236]
[1721329438099,0.814349,3410.9,3409.7,7.44]
[1721329438401,2.9323,3410.3,3409.6,2.93283]
[1721329438756,2.9323,3410.3,3409.6,5.86565]
[1721329438957,2.9323,3410.3,3409.6,4.080325]
[1721329439497,5.34933,3410.8,3410.1,2.93244]
[1721329439970,2.93205,3410.6,3410.1,2.93244]
[1721329440359,2.93173,3411.0,3410.3,2.93227]
[1721329440563,2.93203,3410.6,3409.9,2.93259]
[1721329440889,2.93216,3410.5,3409.9,2.93259]
[1721329441262,2.93221,3410.4,3409.9,2.93259]
[1721329441457,2.93231,3410.3,3409.7,2.93276]
[1721329441984,2.93239,3410.2,3409.6,1.147505]
[1721329442180,2.93239,3410.2,3409.6,3.0]
[1721329443465,2.93239,3410.2,3409.6,5.93283]
[1721329443665,2.93221,3410.4,3409.7,2.9328]
[1721329443666,5.86448,3410.4,3409.7,2.9328]
[1721329443897,2.93221,3410.4,3409.7,2.9328]
[1721329444367,2.93235,3410.3,3409.7,2.9328]
[1721329445515,2.93239,3410.2,3409.7,2.9328]
[1721329447010,2.93239,3410.2,3409.2,7.44]
[1721329447011,2.93306,3409.5,3409.2,7.44]
[1721329447176,2.93307,3409.4,3408.8,5.30497]
[1721329447372,2.93307,3409.4,3408.8,2.93357]
[1721329448151,2.93291,3409.6,3408.8,1.64136177]
[1721329448313,2.93307,3409.4,3408.8,4.57489177]
[1721329449349,5.41851,3410.0,3408.5,2.7884]
[1721329449350,2.93331,3409.2,3408.5,5.42857]
[1721329449629,2.93269,3409.9,3408.3,7.44]
[1721329449630,5.86708,3408.9,3408.3,7.44]
[1721329449993,2.9335,3408.9,3408.3,7.44]
[1721329450439,2.93369,3408.7,3408.3,7.44]
[1721329451331,2.93369,3408.7,3408.1,2.93417]
[1721329453603,2.93406,3408.3,3407.8,7.44]
[1721329453855,2.93406,3408.3,3407.6,2.93457]
[1721329455001,2.93407,3408.3,3407.6,2.93457]
[1721329455202,2.93407,3408.3,3407.7,3.0]
[1721329455422,2.93407,3408.3,3407.6,2.93457]
[1721329455423,2.9341,3408.2,3407.6,2.93457]
[1721329457307,2.93419,3408.1,3407.4,2.93472]
[1721329457733,2.031,3407.9,3406.7,9.7737]
[1721329457917,2.93467,3407.6,3406.9,2.93521]
[1721329458341,4.96575,3407.5,3406.7,2.93532]
[1721329458508,4.96575,3407.5,3406.8,2.93523]
[1721329458935,7.90053,3407.5,3406.8,2.93523]
[1721329459154,4.96575,3407.5,3406.8,2.93523]
[1721329459471,4.96575,3407.5,3406.6,2.93541]
[1721329459612,2.93492,3407.3,3406.6,2.93541]
[1721329459816,2.93501,3407.2,3406.6,2.93541]
[1721329460355,2.93501,3407.2,3406.7,0.55]
[1721329460663,2.93492,3407.3,3406.4,2.93561]
[1721329460664,2.93505,3407.1,3406.4,2.93561]
[1721329460861,2.93505,3407.1,3406.5,3.48555]
[1721329461923,2.93513,3407.0,3406.5,0.55]
[1721329462117,2.93562,3406.5,3405.8,10.37614]
[1721329462333,2.93562,3406.5,3405.8,2.93614]
[1721329462533,2.93565,3406.4,3405.8,2.93614]
[1721329464638,2.93565,3406.4,3405.9,0.55]
[1721329466665,2.93548,3406.6,3405.9,4.128307]
[1721329466845,2.93548,3406.6,3405.9,1.192247]
[1721329466846,2.93557,3406.5,3405.9,1.192247]
[1721329467063,2.93548,3406.6,3405.9,1.192247]
[1721329467453,2.9357,3406.4,3405.9,1.192247]
[1721329468368,2.93575,3406.3,3405.7,2.93625]
[1721329468666,2.93575,3406.3,3405.8,0.55]
[1721329469547,2.93582,3406.2,3405.8,0.55]
[1721329469777,2.32310369,3406.2,3405.6,0.55]
[1721329470343,2.32310369,3406.2,3405.6,4.872628]
[1721329470975,2.93609,3405.9,3405.3,7.44]
[1721329471437,2.93616,3405.8,3405.3,7.44]
[1721329471636,2.93616,3405.8,3405.2,2.93663]
[1721329471894,2.031,3405.9,3404.8,7.44]
[1721329471895,4.96742,3405.5,3404.8,7.44]
[1721329472058,2.93667,3405.3,3404.8,7.44]
[1721329472240,2.93682,3405.1,3404.8,7.44]
[1721329472559,2.93682,3405.1,3404.3,14.8218]
[1721329472560,2.93688,3405.0,3404.4,2.93731]
[1721329473211,2.93695,3404.9,3404.3,10.37745]
[1721329473356,2.031,3405.1,3404.3,7.44]
[1721329473357,4.96779,3405.1,3404.3,7.44]
[1721329473678,2.937,3404.9,3404.3,7.44]
[1721329473985,2.93704,3404.8,3404.3,7.44]
[1721329474132,2.93704,3404.8,3404.3,8.47776]
[1721329474337,2.93704,3404.8,3404.3,7.44]
[1721329475168,2.93694,3404.9,3404.3,7.44]
[1721329475661,2.93694,3404.9,3404.4,0.55]
[1721329476271,2.93703,3404.8,3404.4,0.55]
[1721329476775,2.93694,3404.9,3404.2,0.55]
[1721329476776,2.93711,3404.7,3404.2,0.55]
[1721329477066,5.87395,3404.9,3404.2,0.55]
[1721329477369,2.93694,3404.9,3404.2,5.122338]
[1721329477572,2.93711,3404.8,3404.2,2.184798]
[1721329479741,2.93712,3404.7,3404.2,2.184798]
[1721329479946,2.93712,3404.7,3403.6,7.44]
[1721329479947,2.93768,3404.1,3403.6,7.44]
[1721329480159,2.93829,3403.4,3402.9,2.4881]
[1721329480344,2.93841,3403.2,3402.7,7.44]
[1721329480659,2.93841,3403.2,3402.8,4.0]
[1721329481039,2.93841,3403.2,3402.7,7.44]
[1721329481289,2.9385,3403.1,3402.7,7.44]
[1721329481491,2.9385,3403.1,3402.2,2.93925]
[1721329481492,2.9385,3403.1,3402.2,10.37925]
[1721329481644,2.93867,3402.9,3402.2,2.93925]
[1721329482021,2.93867,3402.9,3402.3,0.832507]
[1721329482146,2.93876,3402.8,3402.3,0.832507]
[1721329482347,2.93884,3402.7,3402.1,2.93935]
[1721329483087,2.93873,3402.9,3402.1,2.93935]
[1721329483314,2.93859,3403.0,3402.1,2.93935]
[1721329483591,2.93882,3402.8,3402.1,2.93935]
[1721329483788,2.93882,3402.8,3402.2,3.48927]
[1721329484003,2.93882,3402.8,3402.3,0.593567]
[1721329484144,2.93882,3402.8,3402.4,0.55]
[1721329484859,2.93885,3402.7,3402.4,0.55]
[1721329485064,2.93882,3402.8,3402.4,0.55]
[1721329485579,2.93827,3403.4,3402.4,0.55]
[1721329485580,2.93885,3402.7,3402.4,0.55]
[1721329485885,2.93893,3402.6,3402.3,0.593567]
[1721329486052,2.93893,3402.6,3402.0,2.4464]
[1721329486252,2.93893,3402.6,3401.8,2.9396]
[1721329486577,2.93893,3402.6,3401.9,0.55]
[1721329487148,2.93917,3402.4,3401.9,0.55]
[1721329487348,2.93915,3402.4,3401.8,0.55]
[1721329487556,2.93919,3402.3,3401.8,0.55]
[1721329487761,2.93919,3402.3,3401.6,5.42446]
[1721329487975,2.93919,3402.3,3401.7,0.836439]
[1721329488389,2.93919,3402.3,3401.6,5.42446]
[1721329488390,2.93926,3402.3,3401.6,2.4847]
[1721329488563,2.93926,3402.3,3401.4,5.87983]
[1721329488764,2.93928,3402.2,3401.5,2.93987]
[1721329489062,2.93928,3402.2,3401.6,0.55]
[1721329489916,2.93915,3402.4,3401.6,3.48979]
[1721329490114,2.93959,3401.9,3401.3,7.7336]
[1721329490398,2.93968,3401.8,3401.3,7.7336]
[1721329490962,2.93923,3402.3,3401.3,7.44]
[1721329491159,2.93976,3401.7,3401.0,2.9403]
[1721329491409,0.565023,3402.2,3401.1,2.94016]
[1721329491410,2.93968,3401.8,3401.1,2.94016]
[1721329491570,2.93953,3401.9,3401.2,2.94013]
[1721329492404,2.93953,3401.9,3401.2,2.94007]
[1721329492604,2.93962,3401.8,3401.2,2.94007]
[1721329493487,2.93971,3401.7,3401.0,2.9403]
[1721329493691,2.93971,3401.7,3401.1,0.55]
[1721329495263,2.93958,3401.9,3401.1,0.55]
[1721329495494,2.93964,3401.8,3401.2,2.94008]
[1721329497604,5.87899,3402.0,3401.2,5.88013]
[1721329497813,0.565023,3402.2,3401.1,1.07609]
[1721329497967,2.93911,3402.4,3401.8,2.93961]
[1721329498168,0.587803,3402.4,3401.7,2.2803]
[1721329498376,2.93883,3402.8,3401.9,2.93947]
[1721329498681,2.93899,3402.6,3401.9,2.93947]
[1721329499007,2.93898,3402.6,3401.9,2.93947]
[1721329500201,2.93938,3402.1,3401.3,12.66033]
[1721329500398,2.711,3403.0,3400.8,2.9404]
[1721329500399,2.9396,3401.9,3401.1,2.94016]
[1721329500610,2.711,3402.0,3400.9,2.94036]
[1721329500810,2.94011,3401.3,3400.8,7.44]
[1721329500978,2.94001,3401.4,3400.6,2.89064]
[1721329501178,2.94005,3401.3,3400.7,2.94056]
[1721329501386,2.94018,3401.2,3400.5,2.94068]
[1721329501691,2.94029,3401.1,3400.4,5.37282]
[1721329501887,0.45319672,3401.2,3400.4,5.37275]
[1721329502094,2.94016,3401.2,3400.4,5.37275]
[1721329502323,2.94023,3401.1,3400.4,5.37275]
[1721329502788,2.94023,3401.1,3400.5,2.94074]
[1721329503188,2.94005,3401.3,3400.4,2.432]
[1721329503394,2.94027,3401.1,3400.4,2.432]
[1721329504129,3.528302,3401.1,3400.4,2.432]
[1721329504280,2.94083,3400.4,3400.0,7.44]
[1721329504479,2.94083,3400.4,3399.7,0.2]
[1721329504915,2.715,3400.6,3399.7,0.2]
[1721329505128,2.94108,3400.2,3399.7,0.2]
[1721329505333,2.94092,3400.3,3399.7,0.2]
[1721329505334,2.94118,3400.0,3399.7,0.2]
[1721329505991,2.94134,3399.8,3399.7,0.2]
[1721329506195,5.88268,3399.8,3399.7,0.2]
[1721329506409,8.888948,3399.8,3399.7,0.2]
[1721329506603,11.830288,3399.8,3399.7,0.2]
[1721329506815,17.918288,3399.8,3399.7,0.2]
[1721329509281,17.918288,3399.8,3397.6,15.2732]
[1721329509282,2.94226,3398.8,3397.8,2.94307]
[1721329509504,0.294226,3398.7,3397.4,2.94342]
[1721329509689,2.94273,3398.2,3397.5,2.94333]
[1721329510338,2.94291,3398.0,3397.3,2.94349]
[1721329510880,9.324576,3398.7,3397.4,2.94342]
[1721329510881,2.94273,3398.2,3397.4,2.94342]
[1721329511106,2.94282,3398.1,3397.2,2.94358]
[1721329511427,2.94283,3398.1,3397.2,1.610543]
[1721329511730,2.94293,3398.0,3397.2,1.610543]
[1721329511910,2.94293,3398.0,3397.2,4.554073]
[1721329512122,2.94293,3398.0,3397.2,2.94353]
[1721329512300,9.324566,3398.7,3397.2,2.94353]
[1721329512301,6.382226,3398.7,3397.2,2.94359]
[1721329512481,2.94283,3398.1,3397.5,2.94332]
[1721329512787,2.94283,3398.1,3397.4,2.94338]
[1721329513183,2.94292,3398.0,3397.2,2.94359]
[1721329513481,9.324566,3398.7,3397.2,2.94359]
[1721329513482,2.94299,3397.9,3397.2,2.94359]
[1721329513777,2.94291,3398.0,3397.3,2.9435]
[1721329513984,2.94276,3398.2,3397.5,2.9433]
[1721329514178,2.94263,3398.4,3397.2,0.99245]
[1721329514413,2.94239,3398.6,3397.6,2.94317]
[1721329514735,2.94239,3398.6,3397.8,2.94301]
[1721329515322,2.94188,3399.2,3398.5,2.9424]
[1721329515485,2.94206,3399.0,3398.3,2.94264]
[1721329516226,2.94188,3399.2,3398.2,2.94271]
[1721329516587,2.94206,3399.0,3398.0,2.94288]
[1721329516823,2.94192,3399.2,3398.0,1.268458]
[1721329517122,2.94201,3399.1,3398.4,2.9425]
[1721329517282,3.088,3399.0,3397.8,7.44]
[1721329517482,2.94244,3398.6,3397.2,14.02775]
[1721329517679,2.9423,3398.7,3398.0,2.94285]
[1721329518023,0.2715,3399.3,3398.6,2.94237]
[1721329518194,2.94154,3399.6,3398.8,2.94213]
[1721329518403,2.94161,3399.5,3398.8,2.94213]
[1721329518586,0.588268,3399.8,3398.3,2.3017]
[1721329518793,2.94123,3400.0,3399.3,2.94178]
[1721329519112,2.94123,3400.0,3399.2,2.94185]
[1721329519113,2.94135,3399.8,3399.2,2.94185]
[1721329519301,2.94118,3400.0,3399.2,2.94185]
[1721329519628,2.715,3400.4,3398.6,2.94236]
[1721329519629,2.94184,3399.3,3398.6,2.94236]
[1721329519850,2.94186,3399.2,3398.1,2.94275]
[1721329520009,2.94209,3399.0,3398.3,2.94261]
[1721329520204,2.94213,3398.9,3398.0,7.44]
[1721329520441,3.690986,3399.2,3398.0,7.44]
[1721329520442,2.94198,3399.1,3398.1,2.94278]
[1721329520602,2.94222,3398.8,3398.1,2.94278]
[1721329520806,3.690986,3399.2,3398.0,7.44]
[1721329520807,2.94239,3398.6,3398.0,7.44]
[1721329521114,2.94231,3398.7,3397.9,2.94297]
[1721329521316,2.94218,3398.9,3398.1,2.94281]
[1721329521928,2.94218,3398.9,3398.3,2.94264]
[1721329522241,2.374,3399.6,3397.9,0.519747]
[1721329522441,2.94159,3399.6,3398.9,2.94205]
[1721329522650,5.37443,3400.1,3398.6,2.94236]
[1721329522805,2.94193,3399.2,3398.5,2.94247]
[1721329523010,2.94193,3399.2,3398.3,10.38262]
[1721329523011,2.94193,3399.2,3398.6,2.94238]
[1721329523245,2.94174,3399.4,3398.7,2.9423]
[1721329523455,2.94184,3399.3,3398.7,2.9423]
[1721329523634,2.94167,3399.5,3398.8,2.94221]
[1721329523837,2.94175,3399.4,3398.6,2.94233]
[1721329524039,2.94175,3399.4,3398.3,7.44]
[1721329524243,0.897121,3399.5,3398.7,2.94229]
[1721329524444,0.897121,3399.5,3398.3,7.44]
[1721329524445,2.94136,3399.8,3398.8,2.94218]
[1721329524611,2.94157,3399.6,3398.8,2.94218]
[1721329524806,2.94137,3399.8,3398.8,2.94218]
[1721329525049,2.94158,3399.6,3398.3,7.44]
[1721329525234,2.94178,3399.3,3398.6,2.94235]
[1721329525435,2.94189,3399.2,3398.3,7.44]
[1721329525750,0.294178,3399.3,3398.3,7.44]
[1721329525751,2.94215,3398.9,3398.3,10.38264]
[1721329525914,2.94215,3398.9,3398.3,2.94264]
[1721329526111,2.94215,3398.9,3398.2,2.94272]
[1721329527210,2.94223,3398.8,3398.2,2.94272]
[1721329527631,6.323988,3399.3,3398.2,2.94272]
[1721329527841,6.8743188,3399.2,3398.5,2.94247]
[1721329528150,2.94206,3399.0,3398.4,2.94249]
[1721329528512,0.9323988,3399.2,3398.7,2.94227]
[1721329529014,2.94121,3400.0,3398.0,3.23642]
[1721329529015,2.94154,3399.6,3398.8,2.94212]
[1721329529244,2.94176,3399.4,3398.5,2.94244]
[1721329529644,2.94176,3399.4,3398.2,7.44]
[1721329529645,2.94154,3399.6,3398.7,2.94221]
[1721329529947,2.94154,3399.6,3398.9,2.94205]
[1721329530246,2.94154,3399.6,3399.0,2.94203]
[1721329530547,2.94154,3399.6,3398.2,7.44]
[1721329530548,0.897092,3399.6,3398.2,7.44]
[1721329530747,8.40554,3400.1,3398.2,7.44]
[1721329530748,2.94167,3399.5,3398.2,7.44]
[1721329530968,6.02938,3399.8,3399.1,2.9419]
[1721329530969,2.94138,3399.8,3399.1,2.9419]
[1721329531128,2.94119,3400.0,3399.3,2.94172]
[1721329531448,3.0,3399.9,3399.3,2.94172]
[1721329531628,2.94119,3400.0,3399.3,2.94172]
[1721329531826,0.588222,3400.0,3399.4,2.94169]
[1721329532356,3.529412,3400.0,3399.4,2.94169]
[1721329532559,2.94126,3399.9,3399.3,2.94175]
[1721329535754,0.588222,3400.0,3399.4,2.94164]
[1721329536463,3.529402,3400.0,3399.4,2.94164]
[1721329536626,0.588222,3400.0,3399.4,2.94164]
[1721329536828,3.529472,3400.0,3399.4,2.94164]
[1721329537353,0.588222,3400.0,3399.4,2.94166]
[1721329538575,3.529402,3400.0,3399.4,2.94166]
[1721329539444,3.529402,3400.0,3399.4,5.88327]
[1721329539774,3.529402,3400.0,3399.4,2.94161]
[1721329539983,0.9558462,3399.9,3399.4,2.94161]
[1721329540129,8.40482,3400.6,3399.7,2.94137]
[1721329540130,2.94086,3400.4,3399.7,2.94137]
[1721329540474,5.65477,3401.7,3399.6,2.3118]
[1721329540475,2.3456,3400.9,3399.6,2.3118]
[1721329540634,2.94049,3400.8,3400.1,2.94101]
[1721329540829,0.822653,3400.7,3400.2,2.94093]
[1721329541029,0.822653,3400.7,3399.6,2.6054]
[1721329541030,2.94025,3401.1,3400.4,2.94083]
[1721329541230,2.94006,3401.3,3400.5,2.94069]
[1721329541446,2.94015,3401.2,3400.5,2.94069]
[1721329542065,2.94025,3401.1,3400.5,2.94069]
[1721329542459,2.94006,3401.3,3400.6,2.94064]
[1721329542662,1.131357,3401.2,3400.6,2.94064]
[1721329542884,1.131357,3401.2,3400.7,2.94057]
[1721329543881,2.94014,3401.2,3400.5,5.88137]
[1721329544053,3.088,3402.1,3400.9,2.94038]
[1721329544252,3.088,3402.1,3400.4,2.4654]
[1721329544253,2.94019,3401.2,3400.4,2.4654]
[1721329544556,3.088,3401.7,3400.4,2.94082]
[1721329544557,2.94029,3401.1,3400.4,2.94082]
[1721329545107,2.94029,3401.1,3400.5,2.94072]
[1721329545307,2.94029,3401.1,3400.4,2.94082]
[1721329545468,3.528324,3401.1,3400.4,2.94082]
[1721329546421,0.588034,3401.1,3400.1,2.94108]
[1721329546568,2.93991,3401.5,3400.2,3.0]
[1721329546772,2.93991,3401.5,3400.5,2.9407]
[1721329546970,2.94005,3401.3,3400.6,2.94058]
[1721329547195,2.94005,3401.3,3400.7,2.94055]
[1721329547406,2.93991,3401.5,3400.8,2.94047]
[1721329547631,2.93991,3401.5,3400.9,2.94036]
[1721329547632,3.786461,3401.5,3400.9,2.94036]
[1721329547772,3.786461,3401.5,3400.5,2.9407]
[1721329547972,2.94031,3401.0,3400.4,2.94076]
[1721329548477,2.94018,3401.2,3400.5,2.94072]
[1721329549015,2.94018,3401.2,3400.6,2.94065]
[1721329549224,2.93991,3401.5,3400.7,2.94051]
[1721329549510,2.94024,3401.1,3400.4,2.94079]
[1721329549715,2.94024,3401.1,3400.5,2.94074]
[1721329549909,2.4376,3401.6,3400.7,2.94056]
[1721329549910,2.94012,3401.3,3400.7,2.94056]
[1721329550121,2.93974,3401.7,3400.1,7.44]
[1721329550328,2.93979,3401.6,3401.0,2.94025]
[1721329550473,2.9397,3401.7,3401.1,2.94021]
[1721329550818,2.93959,3401.9,3401.1,2.94021]
[1721329550819,2.93956,3401.9,3401.1,2.94021]
[1721329550971,2.93975,3401.7,3401.1,2.94021]
[1721329551179,2.93988,3401.5,3400.9,5.88071]
[1721329551400,2.4167,3402.1,3400.6,2.4575]
[1721329551630,2.93962,3401.8,3401.2,2.94009]
[1721329552113,2.93971,3401.7,3401.0,2.94024]
[1721329552414,2.9398,3401.6,3401.0,2.94024]
[1721329552600,0.293971,3401.7,3401.1,2.94022]
[1721329552803,0.293971,3401.7,3401.2,2.94008]
[1721329552972,2.9395,3402.0,3401.3,2.93997]
[1721329553321,5.3561,3402.1,3401.3,2.93997]
[1721329553472,2.93964,3401.8,3401.3,2.93997]
[1721329553673,5.3561,3402.1,3401.4,2.93995]
[1721329553674,2.93949,3402.0,3401.4,2.93995]
[1721329553911,2.93949,3402.0,3401.5,2.93987]
[1721329554075,2.93938,3402.1,3401.5,2.93987]
[1721329554419,3.0,3402.5,3401.5,2.93987]
[1721329554420,2.93918,3402.3,3401.6,2.93977]
[1721329554711,2.93906,3402.5,3401.7,2.93965]
[1721329555083,2.93893,3402.6,3402.0,2.93939]
[1721329555283,2.338,3403.1,3402.0,2.93939]
[1721329555284,2.9388,3402.8,3402.0,2.93939]
[1721329555672,2.9388,3402.8,3402.2,2.93926]
[1721329556610,3.088,3403.2,3402.0,2.93937]
[1721329556611,3.0,3403.2,3402.0,2.93937]
[1721329556780,2.93841,3403.2,3402.5,2.93898]
[1721329557114,2.93868,3402.9,3402.3,2.93913]
[1721329557882,2.93856,3403.1,3402.4,2.93907]
[1721329558566,2.93861,3403.0,3402.4,2.93907]
[1721329560704,2.93862,3403.0,3402.2,5.41609]
[1721329560922,3.232481,3403.0,3402.3,2.93913]
[1721329561095,2.93862,3403.0,3402.4,2.93909]
[1721329561301,6.088,3403.6,3402.8,2.9387]
[1721329561302,5.93811,3403.6,3402.8,2.9387]
[1721329561529,2.93803,3403.7,3403.0,2.93856]
[1721329561741,2.93811,3403.6,3402.8,2.93868]
[1721329561922,2.93811,3403.6,3402.8,2.93867]
[1721329562092,2.93815,3403.5,3402.9,2.93862]
[1721329562288,5.30214,3404.1,3402.3,2.93915]
[1721329562289,2.93787,3403.9,3403.0,2.93857]
[1721329562484,0.530237,3403.9,3403.3,2.93831]
[1721329562737,2.93759,3404.2,3403.5,2.93808]
[1721329563031,2.9374,3404.4,3403.1,0.2936]
[1721329563032,2.93721,3404.6,3403.2,0.2946]
[1721329563240,2.93721,3404.6,3403.8,2.93783]
[1721329563529,2.93734,3404.5,3403.8,2.93783]
[1721329563685,2.93734,3404.5,3403.9,2.93779]
[1721329563881,2.93706,3404.8,3404.0,5.32481]
[1721329563882,2.93717,3404.7,3404.0,5.32481]
[1721329564117,2.93717,3404.7,3404.0,2.3871]
[1721329564118,2.93721,3404.6,3404.0,2.3871]
[1721329564518,0.587423,3404.7,3404.0,5.32481]
[1721329564723,2.93688,3405.0,3404.3,2.93744]
[1721329564888,2.93696,3404.9,3404.2,2.93747]
[1721329565099,7.5,3405.8,3404.3,2.93745]
[1721329565100,2.93688,3405.0,3404.3,2.93745]
[1721329565432,0.587359,3404.9,3404.3,2.93745]
[1721329565637,0.587359,3404.9,3404.1,2.93763]